bitfinex-derivatives/quotes_SOLF0:USTF0_20250820
["timestamp","ask_amount","ask_price","bid_price","bid_amount"]
[1755690608973,0.0399621,179.07,179.06,7.3044176]
[1755690609882,0.0399621,179.07,179.02,3.09]
[1755690610178,0.0399621,179.07,179.03,7.30470306]
[1755690610479,0.0399621,179.07,179.06,3.09]
[1755690610675,0.0399621,179.07,179.06,10.39470306]
[1755690611672,147.31,179.15,179.06,10.39470306]
[1755690611883,147.31,179.15,179.07,9.80013087]
[1755690611884,3.03,179.15,179.07,9.80013087]
[1755690612182,3.03,179.15,179.08,7.30470306]
[1755690612483,144.28,179.17,179.09,5.08674064]
[1755690612674,3.03,179.16,178.99,4.65857147]
[1755690612880,3.03,179.16,179.05,5.58542781]
[1755690613082,3.03,179.15,179.11,0.03865773]
[1755690613284,2.49542781,179.16,179.11,0.03865773]
[1755690613581,3.03,179.12,179.11,0.03865773]
[1755690615874,3.59,179.12,179.02,3.09]
[1755690616079,3.03,179.12,179.03,7.28913627]
[1755690616291,3.03,179.12,179.04,7.28913627]
[1755690616583,3.03,179.12,179.05,7.28913627]
[1755690616776,3.03,179.12,179.06,7.28913627]
[1755690616976,3.88159043,179.14,179.07,5.09344324]
[1755690617176,3.06577337,179.11,179.02,3.09]
[1755690617378,3.06577337,179.11,179.03,7.2997702]
[1755690617574,3.06577337,179.11,179.04,7.2997702]
[1755690617878,3.06577337,179.11,179.06,3.13]
[1755690617879,0.03577337,179.11,179.06,3.13]
[1755690618082,0.03577337,179.11,179.03,3.88159043]
[1755690618282,3.03,179.15,179.09,3.13]
[1755690618479,3.03,179.14,179.1,7.29949208]
[1755690618783,3.03,179.14,179.11,7.30206594]
[1755690618985,0.03877829,179.14,179.04,3.13]
[1755690619180,0.03877829,179.14,179.05,7.30796282]
[1755690619380,144.26,179.16,179.06,10.43796282]
[1755690619581,378.11,179.18,179.07,10.43796282]
[1755690619784,375.08,179.18,179.09,3.13]
[1755690619978,375.08,179.18,179.1,7.30796282]
[1755690620285,375.08,179.18,179.11,7.30796282]
[1755690620488,375.08,179.18,179.12,7.30796282]
[1755690620687,375.08,179.18,179.13,10.43796282]
[1755690620875,3.03,179.17,179.14,7.30796282]
[1755690621079,3.03,179.16,179.15,7.30796282]
[1755690621789,375.08,179.18,179.15,7.30796282]
[1755690621986,375.08,179.18,179.16,5.10667073]
[1755690622186,375.08,179.18,179.14,3.13]
[1755690622380,375.08,179.18,179.15,7.30466055]
[1755690622585,375.08,179.18,179.16,5.10036467]
[1755690622784,375.08,179.18,179.17,5.1002898]
[1755690623083,144.24,179.19,179.17,7.30452779]
[1755690623288,3.03,179.25,179.18,10.43452779]
[1755690623477,3.03,179.25,179.13,0.04092947]
[1755690623478,144.22,179.24,179.19,10.43452779]
[1755690623681,144.22,179.24,179.2,7.30452779]
[1755690623883,144.22,179.24,179.19,3.13]
[1755690624078,144.22,179.24,179.2,10.47329968]
[1755690624381,144.22,179.27,179.21,7.30125773]
[1755690624580,3.03,179.26,179.22,7.30125773]
[1755690624784,144.22,179.27,179.23,7.30125773]
[1755690625081,3.03,179.26,179.24,5.0980399]
[1755690625283,144.22,179.27,179.22,0.03627832]
[1755690625479,147.25,179.27,179.23,7.28630815]
[1755690625687,147.25,179.27,179.24,7.28630815]
[1755690625988,144.22,179.27,179.25,7.28630815]
[1755690626191,144.22,179.27,179.23,3.11]
[1755690626392,144.22,179.27,179.24,7.27779056]
[1755690626688,144.22,179.27,179.25,5.08172934]
[1755690626893,144.22,179.27,179.23,3.11]
[1755690627393,144.22,179.27,179.24,10.38747151]
[1755690627687,144.22,179.27,179.24,3.11]
[1755690627890,144.22,179.27,179.25,5.07717253]
[1755690628196,144.2,179.32,179.26,10.38095437]
[1755690628388,144.2,179.32,179.28,3.11]
[1755690628687,144.2,179.32,179.29,3.11]
[1755690628893,144.2,179.32,179.3,10.37238349]
[1755690629087,144.16,179.35,179.29,3.11]
[1755690629288,144.16,179.35,179.3,10.36237051]
[1755690629489,144.16,179.35,179.31,10.36211414]
[1755690629690,147.26,179.35,179.32,5.06409399]
[1755690629993,147.26,179.35,179.28,0.03586785]
[1755690630291,147.26,179.35,179.29,7.25157817]
[1755690630493,3.1,179.34,179.3,0.04126409]
[1755690630695,3.1,179.32,179.3,0.04126409]
[1755690630996,147.26,179.31,179.3,0.04126409]
[1755690633188,144.16,179.31,179.3,0.04126409]
[1755690633693,147.26,179.31,179.3,0.04126409]
[1755690634194,144.16,179.31,179.3,0.04126409]
[1755690634584,144.16,179.31,179.3,3.15126409]
[1755690634784,144.06,179.34,179.3,3.15126409]
[1755690636800,144.06,179.36,179.3,3.15126409]
[1755690636991,144.06,179.36,179.3,0.04126409]
[1755690637193,147.16,179.36,179.3,0.04126409]
[1755690637391,3.1,179.35,179.3,0.04126409]
[1755690637590,3.1,179.34,179.3,0.04126409]
[1755690638097,144.06,179.36,179.3,0.04126409]
[1755690638098,3.1,179.33,179.3,0.04126409]
[1755690638396,147.14,179.32,179.3,0.04126409]
[1755690638597,16.79,179.45,179.3,0.04126409]
[1755690638799,19.89,179.42,179.3,0.04126409]
[1755690638987,144.04,179.41,179.27,3.11]
[1755690639189,3.1,179.4,179.28,7.21238409]
[1755690639397,3.1,179.4,179.34,0.03992098]
[1755690639596,3.1,179.38,179.34,0.03992098]
[1755690640605,144.04,179.39,179.34,3.14992098]
[1755690640807,3.1,179.42,179.34,3.14992098]
[1755690641010,144.0,179.39,179.35,3.11]
[1755690641211,144.0,179.4,179.35,3.11]
[1755690641605,144.0,179.4,179.36,3.11]
[1755690641798,144.0,179.4,179.34,0.03992098]
[1755690642002,3.1,179.42,179.37,3.11]
[1755690642203,147.1,179.42,179.37,3.11]
[1755690642404,144.0,179.42,179.38,3.11]
[1755690642805,144.0,179.42,179.36,0.037537]
[1755690643005,144.0,179.42,179.37,3.11]
[1755690643208,144.0,179.42,179.38,3.11]
[1755690643408,144.0,179.44,179.39,3.11]
[1755690644307,144.0,179.44,179.4,0.03723994]
[1755690644510,147.1,179.44,179.4,0.03723994]
[1755690644705,144.0,179.44,179.4,3.14723994]
[1755690644911,143.98,179.45,179.4,0.03723994]
[1755690645107,143.98,179.45,179.41,3.11]
[1755690645307,143.98,179.45,179.42,3.11]
[1755690645615,143.98,179.45,179.43,3.11]
[1755690646311,143.98,179.45,179.4,0.03723994]
[1755690646612,143.98,179.45,179.41,3.11]
[1755690647215,143.98,179.45,179.42,3.11]
[1755690648317,518.88,179.49,179.43,3.11]
[1755690649010,518.88,179.49,179.39,3.11]
[1755690649215,521.98,179.49,179.44,0.03897471]
[1755690649416,143.94,179.49,179.45,3.11]
[1755690649815,3.1,179.48,179.44,0.03897471]
[1755690650610,147.04,179.49,179.44,0.03897471]
[1755690650820,3.1,179.48,179.44,0.03897471]
[1755690651116,143.94,179.49,179.44,3.14897471]
[1755690651313,143.94,179.49,179.45,3.11]
[1755690651518,147.04,179.49,179.44,0.03897471]
[1755690652015,147.04,179.49,179.44,3.14897471]
[1755690652216,143.94,179.49,179.44,3.14897471]
[1755690652518,143.9,179.51,179.44,3.14897471]
[1755690653208,3.1,179.57,179.44,3.14897471]
[1755690653412,143.86,179.56,179.44,7.03056514]
[1755690653610,143.86,179.56,179.44,6.99159043]
[1755690653911,143.86,179.56,179.48,0.03794384]
[1755690655912,2.85,179.55,179.48,0.03794384]
[1755690657218,143.82,179.54,179.48,0.03794384]
[1755690658715,2.85,179.53,179.48,0.03794384]
[1755690659322,2.85,179.51,179.48,0.03794384]
[1755690659523,2.85,179.5,179.48,0.03794384]
[1755690660214,146.63,179.49,179.48,0.03794384]
[1755690660926,146.63,179.49,179.38,3.1]
[1755690661221,146.63,179.49,179.39,5.01629829]
[1755690661222,2.85,179.48,179.39,5.01629829]
[1755690661415,2.85,179.48,179.38,3.1]
[1755690661725,2.85,179.48,179.39,5.01701935]
[1755690661916,2.85,179.48,179.38,3.1]
[1755690662311,2.85,179.48,179.39,5.02204008]
[1755690662312,0.03526536,179.45,179.39,5.02204008]
[1755690662514,0.03526536,179.45,179.38,3.1]
[1755690662711,0.03526536,179.45,179.39,5.02209035]
[1755690662915,0.03526536,179.45,179.38,3.1]
[1755690663122,0.03526536,179.45,179.39,5.02207939]
[1755690663425,0.03526536,179.45,179.4,8.12207939]
[1755690663618,0.03526536,179.45,179.41,3.1]
[1755690663818,2.85,179.48,179.41,3.1]
[1755690664226,0.03746485,179.45,179.37,3.1]
[1755690664421,0.03746485,179.45,179.38,7.20260755]
[1755690664621,0.03746485,179.45,179.39,10.30260755]
[1755690664820,146.59,179.52,179.42,3.1]
[1755690665014,374.72,179.59,179.43,7.20260755]
[1755690665218,2.85,179.58,179.44,10.30260755]
[1755690665526,0.04138292,179.53,179.45,7.20260755]
[1755690665821,2.89138292,179.53,179.46,5.03100331]
[1755690666027,2.89138292,179.53,179.44,3.1]
[1755690666221,2.89138292,179.53,179.45,5.03258894]
[1755690666526,2.89138292,179.53,179.46,5.03258894]
[1755690666725,2.89138292,179.53,179.44,3.1]
[1755690667026,2.89138292,179.53,179.45,7.21150358]
[1755690667234,2.89138292,179.53,179.46,7.21150358]
[1755690667422,2.89138292,179.53,179.47,7.21150358]
[1755690667623,2.89138292,179.53,179.48,7.21150358]
[1755690667927,2.89138292,179.53,179.49,5.03730606]
[1755690668125,2.89138292,179.53,179.44,3.1]
[1755690668326,2.89138292,179.53,179.45,7.22306867]
[1755690668521,2.89138292,179.53,179.46,7.22306867]
[1755690668720,2.89138292,179.53,179.47,7.22306867]
[1755690668924,2.89138292,179.53,179.48,7.22306867]
[1755690669123,2.89138292,179.53,179.35,62.0]
[1755690669124,0.04138292,179.53,179.5,3.1]
[1755690669325,0.04138292,179.53,179.42,3.88159043]
[1755690669326,0.04138292,179.53,179.46,3.1]
[1755690669524,143.74,179.57,179.47,7.22731499]
[1755690669721,16.79,179.53,179.34,3.88159043]
[1755690669925,3.88159043,179.48,179.36,3.1]
[1755690670123,2.85,179.47,179.37,7.22809761]
[1755690670426,2.85,179.47,179.38,7.22809761]
[1755690670628,0.03949778,179.44,179.39,7.22809761]
[1755690670826,0.03949778,179.44,179.4,7.22809761]
[1755690671026,0.03949778,179.44,179.41,7.22809761]
[1755690671222,2.88949778,179.44,179.41,2.17925387]
[1755690671431,2.88949778,179.44,179.42,5.05622607]
[1755690671619,0.03949778,179.44,179.36,3.1]
[1755690671825,0.03949778,179.44,179.37,7.23970577]
[1755690672029,0.03949778,179.44,179.36,3.1]
[1755690672030,0.03949778,179.44,179.38,7.23970577]
[1755690672331,0.03949778,179.44,179.39,7.24072963]
[1755690672632,0.03949778,179.44,179.42,3.1]
[1755690672930,143.72,179.48,179.44,3.1]
[1755690673226,143.72,179.48,179.45,7.24170174]
[1755690673425,143.72,179.48,179.31,374.72]
[1755690673426,0.03964401,179.48,179.47,3.1]
[1755690673626,0.03964401,179.48,179.47,10.34170174]
[1755690673825,2.85,179.53,179.47,7.24170174]
[1755690674025,2.85,179.52,179.48,7.24170174]
[1755690674225,143.7,179.55,179.49,5.05694111]
[1755690674432,143.7,179.55,179.5,5.05694111]
[1755690674623,0.03885435,179.52,179.46,3.1]
[1755690674819,2.88885435,179.52,179.47,7.24659674]
[1755690675128,0.03885435,179.52,179.48,7.24646567]
[1755690675326,0.03885435,179.52,179.49,5.06098594]
[1755690675527,2.85,179.5,179.42,3.1]
[1755690675730,2.85,179.5,179.43,7.2473562]
[1755690676032,2.85,179.5,179.44,7.2473562]
[1755690676228,2.85,179.5,179.45,7.2473562]
[1755690676434,2.85,179.53,179.46,7.2473562]
[1755690676732,0.04145144,179.49,179.47,10.3473562]
[1755690676938,0.04145144,179.49,179.48,7.2473562]
[1755690678823,0.04145144,179.49,179.48,10.3473562]
[1755690679034,0.04145144,179.49,179.48,7.2473562]
[1755690680231,0.04145144,179.49,179.48,3.1]
[1755690680428,0.04145144,179.49,179.48,10.36394473]
[1755690680925,0.04145144,179.49,179.48,7.26394473]
[1755690681131,0.04145144,179.49,179.48,7.26274675]
[1755690682124,2.89145144,179.49,179.48,7.26274675]
[1755690682330,2.89145144,179.49,179.48,1.70904331]
[1755690682532,2.89145144,179.49,179.4,3.1]
[1755690682733,2.89145144,179.49,179.41,2.19308849]
[1755690683031,143.66,179.48,179.42,2.19308849]
[1755690683334,2.85,179.44,179.43,2.19308849]
[1755690684029,0.04067285,179.45,179.43,2.19308849]
[1755690684232,0.04067285,179.45,179.37,3.1]
[1755690684433,0.04067285,179.45,179.39,3.1]
[1755690684734,0.04067285,179.45,179.4,2.19684015]
[1755690684934,2.85,179.49,179.42,3.1]
[1755690685130,143.64,179.52,179.43,2.19684015]
[1755690685331,0.04177588,179.44,179.43,3.1]
[1755690685533,143.64,179.52,179.43,5.29766822]
[1755690685732,143.64,179.52,179.44,2.19766822]
[1755690685933,143.64,179.52,179.45,2.19766822]
[1755690686236,0.04271337,179.5,179.46,2.19766822]
[1755690686437,2.90271337,179.5,179.47,2.19865334]
[1755690686632,2.86,179.49,179.48,2.19865334]
[1755690686841,2.86,179.49,179.39,3.08]
[1755690687037,2.86,179.49,179.4,2.19892363]
[1755690687232,2.86,179.49,179.41,2.19892363]
[1755690687433,0.03919902,179.46,179.42,2.19892363]
[1755690687634,0.03919902,179.46,179.43,2.19892363]
[1755690687835,2.86,179.46,179.44,2.19892363]
[1755690688134,2.86,179.46,179.45,2.19892363]
[1755690688336,2.89898461,179.46,179.45,2.19892363]
[1755690688731,0.03898461,179.46,179.45,2.19892363]
[1755690689137,2.89898461,179.46,179.45,2.19892363]
[1755690689737,0.03898461,179.46,179.45,2.20092123]
[1755690690132,0.03898461,179.46,179.45,5.28092123]
[1755690690328,0.03898461,179.46,179.45,5.2810936]
[1755690690730,0.03898461,179.46,179.45,2.2010936]
[1755690691841,2.89898461,179.46,179.45,2.2010936]
[1755690692236,2.89898461,179.46,179.38,3.08]
[1755690692437,2.89898461,179.46,179.39,2.20130577]
[1755690692740,2.89898461,179.46,179.4,2.20130577]
[1755690692943,0.03898461,179.46,179.41,2.20130577]
[1755690693140,2.86,179.45,179.42,2.20130577]
[1755690693340,2.86,179.45,179.43,2.20130577]
[1755690693637,2.86,179.45,179.38,3.08]
[1755690693845,2.86,179.45,179.39,2.20108782]
[1755690694041,2.86,179.45,179.4,2.20108782]
[1755690694236,2.86,179.45,179.41,2.20108782]
[1755690694437,2.86,179.45,179.42,7.22939728]
[1755690694637,0.03898461,179.46,179.43,7.22939728]
[1755690694839,2.89898461,179.46,179.44,2.20108782]
[1755690695146,2.89898461,179.46,179.45,7.22870292]
[1755690695344,0.03898461,179.46,179.45,2.20071096]
[1755690695543,0.03898461,179.46,179.45,7.2283535]
[1755690695743,0.03898461,179.46,179.45,10.3083535]
[1755690697242,143.62,179.55,179.45,10.3083535]
[1755690697442,143.62,179.55,179.46,7.2283535]
[1755690697646,5.5714,179.5,179.47,7.2283535]
[1755690697843,5.5714,179.5,179.48,7.2283535]
[1755690698142,146.48,179.56,179.42,4.61526842]
[1755690698143,146.48,179.56,179.49,10.3083535]
[1755690698349,146.48,179.56,179.5,7.2283535]
[1755690698545,146.48,179.56,179.51,7.26669297]
[1755690698747,5.5708,179.52,179.51,0.03833947]
[1755690698947,5.5708,179.52,179.51,7.26257409]
[1755690699445,143.62,179.56,179.51,10.34200305]
[1755690699650,143.62,179.56,179.52,7.22366358]
[1755690699850,143.62,179.56,179.53,7.22358941]
[1755690700049,5.5697,179.55,179.54,7.22328206]
[1755690701451,125.11908893,179.58,179.54,7.22328206]
[1755690701452,5.5695,179.56,179.54,7.22328206]
[1755690701652,5.5695,179.56,179.55,10.30328206]
[1755690702448,143.6,179.61,179.55,7.22328206]
[1755690702649,143.6,179.61,179.57,3.08]
[1755690702853,5.5685,179.59,179.58,7.22328206]
[1755690703045,5.5685,179.59,179.58,10.30328206]
[1755690703452,5.5685,179.59,179.58,7.22328206]
[1755690704149,143.6,179.61,179.58,7.22328206]
[1755690704353,143.6,179.61,179.59,2.19245925]
[1755690704651,5.5681,179.6,179.57,0.03835792]
[1755690704854,5.5681,179.6,179.58,10.28226305]
[1755690705053,5.5681,179.6,179.59,7.20226305]
[1755690705357,143.58,179.65,179.59,7.20226305]
[1755690705559,146.44,179.65,179.6,7.20226305]
[1755690705759,143.58,179.65,179.58,3.08]
[1755690705952,5.5683,179.6,179.59,7.19728781]
[1755690707961,5.5683,179.6,179.59,10.26903543]
[1755690708360,5.5683,179.6,179.59,10.2680298]
[1755690709254,5.5683,179.6,179.59,7.1880298]
[1755690709553,5.5684,179.59,179.58,0.03923575]
[1755690710064,8.4284,179.59,179.58,0.03923575]
[1755690712155,5.5684,179.59,179.58,0.03923575]
[1755690712659,143.58,179.65,179.58,10.26372567]
[1755690712660,146.44,179.65,179.58,10.26372567]
[1755690712860,146.44,179.65,179.58,3.11923575]
[1755690713357,2.86,179.65,179.59,2.18441518]
[1755690713563,2.86,179.65,179.58,3.11923575]
[1755690714063,2.86,179.65,179.59,3.08]
[1755690714264,2.86,179.65,179.58,0.03923575]
[1755690714465,5.568,179.61,179.58,3.11923575]
[1755690714864,2.86,179.65,179.59,3.08]
[1755690715166,2.86,179.65,179.6,3.08]
[1755690715361,20.67159043,179.71,179.61,3.08]
[1755690715565,143.46,179.68,179.61,3.08]
[1755690715955,5.5671,179.64,179.61,3.08]
[1755690716154,5.5671,179.64,179.63,0.03930978]
[1755690717761,5.5666,179.65,179.63,0.03930978]
[1755690718663,5.5669,179.64,179.63,0.03930978]
[1755690720562,8.5769,179.64,179.63,0.03930978]
[1755690726165,5.5666,179.65,179.63,0.03930978]
[1755690726370,5.5666,179.65,179.63,3.17930978]
[1755690727075,5.5664,179.66,179.63,3.17930978]
[1755690728673,143.44,179.68,179.64,3.14]
[1755690728972,143.44,179.68,179.65,3.14]
[1755690729267,5.5658,179.68,179.65,3.14]
[1755690729665,5.5658,179.68,179.63,0.03930978]
[1755690729666,5.5654,179.69,179.66,3.14]
[1755690729868,143.32,179.7,179.66,3.14]
[1755690730065,5.5644,179.72,179.68,3.14]
[1755690730259,374.16,179.79,179.63,0.03930978]
[1755690730260,3.01,179.76,179.69,3.14]
[1755690730467,143.32,179.75,179.7,2.17830466]
[1755690730666,5.564,179.74,179.71,3.14]
[1755690730869,5.564,179.74,179.71,3.18158473]
[1755690731673,5.5641,179.73,179.71,3.18158473]
[1755690732268,5.5638,179.74,179.71,3.18158473]
[1755690732971,5.5641,179.73,179.71,3.18158473]
[1755690733173,146.29,179.76,179.71,0.04158473]
[1755690733372,5.5635,179.75,179.72,3.14]
[1755690733781,146.29,179.76,179.72,3.14]
[1755690733970,143.28,179.76,179.73,3.14]
[1755690734568,148.8434,179.76,179.73,3.14]
[1755690734770,148.8434,179.76,179.74,2.17973033]
[1755690734965,148.8434,179.76,179.73,3.14]
[1755690735170,5.5635,179.75,179.73,3.14]
[1755690735569,3.01,179.74,179.71,0.04158473]
[1755690735873,5.5637,179.75,179.72,5.3194571]
[1755690736177,143.28,179.76,179.73,5.31975352]
[1755690736476,5.5631,179.77,179.75,3.14]
[1755690737374,5.5626,179.78,179.75,3.14]
[1755690737977,148.7823,179.79,179.76,2.17890247]
[1755690738177,5.5623,179.79,179.76,3.14]
[1755690739079,148.7819,179.81,179.77,5.31943911]
[1755690739273,143.22,179.81,179.78,2.17938714]
[1755690739467,5.5622,179.8,179.77,3.14]
[1755690739674,5.5622,179.8,179.78,2.17997814]
[1755690739871,5.5622,179.8,179.77,3.14]
[1755690740175,5.5622,179.79,179.78,7.12190124]
[1755690740377,5.5622,179.79,179.78,2.17997836]
[1755690741082,5.5622,179.79,179.78,7.12229987]
[1755690741472,5.562,179.8,179.78,7.12229987]
[1755690741777,5.562,179.8,179.77,3.17897241]
[1755690741979,3.01,179.8,179.78,7.12357535]
[1755690742178,3.01,179.8,179.79,7.12599134]
[1755690742372,3.01,179.8,179.79,2.18156649]
[1755690742574,3.01,179.81,179.79,2.18156649]
[1755690742778,5.5624,179.79,179.77,0.03897241]
[1755690742974,5.5624,179.79,179.78,7.12318987]
[1755690743176,8.5724,179.79,179.78,7.12476525]
[1755690743376,5.5624,179.79,179.78,7.12546055]
[1755690743781,5.5624,179.79,179.78,7.12471093]
[1755690744176,8.5724,179.79,179.78,2.18065457]
[1755690744479,5.5625,179.78,179.77,0.03897241]
[1755690744680,8.5725,179.78,179.77,0.03897241]
[1755690747381,5.5625,179.78,179.77,2.22140413]
[1755690748286,5.5625,179.78,179.77,7.16743413]
[1755690749282,5.5625,179.78,179.77,2.22109959]
[1755690749975,0.03884286,179.79,179.77,10.19623084]
[1755690750182,0.03884286,179.79,179.78,2.18212718]
[1755690750578,0.03884286,179.79,179.78,10.15636864]
[1755690750987,143.04,179.85,179.78,10.15636864]
[1755690751278,5.5608,179.84,179.81,3.03]
[1755690751478,5.5608,179.84,179.82,2.18212718]
[1755690751787,148.6006,179.85,179.81,3.03]
[1755690751988,143.04,179.85,179.82,2.18028748]
[1755690752179,2.87,179.83,179.77,3.03]
[1755690752386,143.04,179.85,179.81,0.04181437]
[1755690752581,143.04,179.85,179.81,3.07181437]
[1755690752785,148.6004,179.85,179.82,3.03]
[1755690753079,145.91,179.85,179.81,0.04181437]
[1755690753485,5.5607,179.84,179.81,0.04181437]
[1755690753687,2.87,179.84,179.81,0.04181437]
[1755690754084,143.04,179.85,179.81,0.04181437]
[1755690754288,2.87,179.84,179.81,0.04181437]
[1755690754487,5.5613,179.82,179.81,0.04181437]
[1755690754790,145.91,179.85,179.81,0.04181437]
[1755690754991,5.5611,179.83,179.81,0.04181437]
[1755690756092,5.5606,179.85,179.81,0.04181437]
[1755690756297,2.87,179.88,179.82,2.1795491]
[1755690756490,2.87,179.88,179.81,0.04181437]
[1755690756689,5.5603,179.86,179.82,5.20917521]
[1755690756895,2.87,179.88,179.81,0.04181437]
[1755690757096,5.5605,179.85,179.82,2.17917478]
[1755690757393,5.5605,179.85,179.83,3.03]
[1755690757586,374.06,179.89,179.81,0.04181437]
[1755690757787,2.87,179.98,179.84,3.03]
[1755690757990,2.87,179.96,179.85,7.11856701]
[1755690758187,5.5589,179.9,179.86,7.11856701]
[1755690758395,5.5589,179.9,179.87,3.03]
[1755690758596,5.5586,179.91,179.89,0.04274153]
[1755690758999,2.87,179.92,179.89,0.04274153]
[1755690759398,5.5588,179.9,179.89,0.04274153]
[1755690760299,5.5586,179.91,179.89,0.04274153]
[1755690760499,142.96,179.92,179.9,3.03]
[1755690760699,142.96,179.92,179.89,3.07274153]
[1755690761100,148.5183,179.92,179.89,3.07274153]
[1755690761302,142.96,179.92,179.89,3.07274153]
[1755690761691,5.5588,179.9,179.89,0.04274153]
[1755690762396,8.4288,179.9,179.89,0.04274153]
[1755690763200,5.5609,179.84,179.81,3.03]
[1755690763502,2.87,179.9,179.82,10.14585445]
[1755690763702,142.96,179.92,179.84,3.03]
[1755690764008,142.96,179.92,179.85,2.17790994]
[1755690764298,2.87,179.9,179.81,3.03]
[1755690764492,142.96,179.92,179.87,0.03686525]
[1755690764699,2.87,179.91,179.87,0.03686525]
[1755690765001,142.96,179.92,179.87,0.03686525]
[1755690765002,145.83,179.92,179.87,3.06686525]
[1755690765597,5.559,179.9,179.87,3.06686525]
[1755690765802,5.559,179.9,179.88,3.03]
[1755690766205,2.87,179.91,179.87,3.06686525]
[1755690766402,2.87,179.91,179.87,0.03686525]
[1755690766598,2.87,179.89,179.87,0.03686525]
[1755690767106,5.5594,179.88,179.87,0.03686525]
[1755690767306,8.4294,179.88,179.87,0.03686525]
[1755690767808,8.4294,179.88,179.87,0.00177931]
[1755690768008,5.5594,179.88,179.87,0.00177931]
[1755690768201,8.4294,179.88,179.87,0.00177931]
[1755690769005,2.87,179.87,179.76,3.03]
[1755690769207,2.87,179.85,179.77,7.1260367]
[1755690769409,2.87,179.85,179.78,7.1260367]
[1755690769704,2.87,179.85,179.79,7.1260367]
[1755690769912,142.84,179.86,179.8,7.13225045]
[1755690770107,2.87,179.85,179.81,7.13225045]
[1755690770314,2.87,179.84,179.79,3.03]
[1755690770514,2.87,179.85,179.8,7.13718702]
[1755690770807,145.71,179.86,179.81,7.13718702]
[1755690771005,142.84,179.86,179.82,10.16785716]
[1755690771207,142.84,179.86,179.82,3.03]
[1755690771511,2.87,179.92,179.85,3.03]
[1755690771711,145.71,179.92,179.85,3.03]
[1755690772208,145.71,179.92,179.86,7.14245982]
[1755690772414,2.87,179.91,179.87,7.14245982]
[1755690772610,142.84,179.92,179.88,2.18799268]
[1755690772910,142.84,179.92,179.88,3.03]
[1755690773112,142.84,179.92,179.8,3.88159043]
[1755690773316,142.84,179.92,179.81,7.14745928]
[1755690773515,142.87683083,179.92,179.82,7.14745928]
[1755690773712,0.03683083,179.92,179.83,15.73845928]
[1755690774017,2.87,179.94,179.85,3.03]
[1755690774204,2.87,179.94,179.86,7.14745928]
[1755690774407,2.87,179.94,179.87,7.14745928]
[1755690774618,2.87,179.94,179.88,7.14745928]
[1755690774912,2.87,179.93,179.89,7.14745928]
[1755690775114,2.87,179.92,179.9,2.18797423]
[1755690775312,0.03733199,179.93,179.85,3.03]
[1755690775513,0.03733199,179.93,179.86,7.15882925]
[1755690775715,5.5587,179.91,179.87,7.15882925]
[1755690776012,3.16733199,179.93,179.88,10.20882925]
[1755690776212,5.5588,179.9,179.89,7.15882925]
[1755690776814,5.5586,179.91,179.89,7.15882925]
[1755690777008,5.5586,179.91,179.9,7.15882925]
[1755690777818,5.5586,179.91,179.9,10.20882925]
[1755690778420,0.03712804,179.92,179.9,10.20882925]
[1755690778622,0.03712804,179.92,179.91,7.15882925]
[1755690779423,8.72532804,179.92,179.91,7.15882925]
[1755690779822,3.16712804,179.92,179.91,7.16238866]
[1755690780229,8.72532804,179.92,179.91,7.16238866]
[1755690780525,3.16712804,179.92,179.91,7.16330769]
[1755690780722,3.16712804,179.92,179.85,3.05]
[1755690780919,3.16712804,179.92,179.86,7.16405346]
[1755690781118,0.03712804,179.92,179.87,7.16405346]
[1755690781319,5.5591,179.89,179.88,7.16405346]
[1755690781519,3.16712804,179.92,179.88,7.16405346]